bitfinex-derivatives/quotes_SOLF0:USTF0_20250424
["timestamp","ask_amount","ask_price","bid_price","bid_amount"]
[1745497457255,25.04,148.28,148.27,6.7436]
[1745497458260,25.04,148.28,148.26,6.7439]
[1745497462164,25.04,148.28,148.27,6.7436]
[1745497463365,25.04,148.28,148.26,6.7438]
[1745497463763,25.04,148.28,148.22,16.08702707]
[1745497463964,25.04,148.28,148.25,6.7441]
[1745497464458,25.04,148.28,148.24,6.7447]
[1745497464966,25.04,148.28,148.25,6.7445]
[1745497465565,31.7834,148.28,148.25,6.7445]
[1745497466165,6.7436,148.27,148.25,6.7445]
[1745497466463,11.08702707,148.27,148.22,5.0]
[1745497466662,11.08702707,148.25,148.19,5.0]
[1745497466966,25.02,148.24,148.19,5.0]
[1745497467564,25.02,148.24,148.22,6.7457]
[1745497467966,25.02,148.24,148.19,5.0]
[1745497469266,25.02,148.24,148.22,6.7456]
[1745497470169,25.02,148.24,148.23,6.7454]
[1745497475474,25.02,148.24,148.21,6.7462]
[1745497475674,11.08702707,148.23,148.19,5.0]
[1745497476073,11.08702707,148.23,148.2,6.7467]
[1745497476271,11.08702707,148.23,148.19,5.0]
[1745497477274,17.83252707,148.23,148.2,6.7465]
[1745497477974,11.08702707,148.23,148.19,5.0]
[1745497478674,17.83262707,148.23,148.2,6.7465]
[1745497479976,17.83262707,148.23,148.21,6.7462]
[1745497480174,11.08702707,148.23,148.19,5.0]
[1745497480476,11.08702707,148.23,148.2,6.7467]
[1745497480673,11.08702707,148.23,148.19,5.0]
[1745497480878,11.08702707,148.21,148.17,11.3395]
[1745497481078,11.08702707,148.21,148.2,6.7468]
[1745497481378,11.09968439,148.22,148.17,11.3395]
[1745497481877,7.28597082,148.2,148.17,11.3395]
[1745497482675,7.28597082,148.2,148.19,6.7472]
[1745497484879,7.28597082,148.22,148.18,7.28597082]
[1745497485073,7.28597082,148.25,148.21,7.28597082]
[1745497485874,7.28597082,148.26,148.21,7.28597082]
[1745497486079,7.28597082,148.26,148.22,7.28597082]
[1745497486979,7.28597082,148.24,148.19,5.0]
[1745497487177,7.28597082,148.2,148.15,5.0]
[1745497487379,7.28597082,148.17,148.15,5.0]
[1745497487578,7.28597082,148.17,148.16,6.7486]
[1745497487886,7.28597082,148.17,148.12,5.0]
[1745497488182,7.28597082,148.15,148.12,5.0]
[1745497488382,7.28597082,148.14,148.12,5.0]
[1745497488584,7.28597082,148.14,148.13,6.7498]
[1745497488983,7.28597082,148.16,148.12,12.28597082]
[1745497489182,7.28597082,148.17,148.12,12.28597082]
[1745497489482,7.28597082,148.17,148.16,6.7486]
[1745497489983,32.30597082,148.17,148.16,6.7486]
[1745497490684,7.28597082,148.17,148.16,6.7486]
[1745497491375,7.29011355,148.17,148.16,6.7486]
[1745497493183,7.29011355,148.17,148.12,12.29011355]
[1745497493486,42.87474377,148.18,148.12,5.0]
[1745497493887,6.7483,148.17,148.12,5.0]
[1745497494087,11.10684377,148.16,148.12,5.0]
[1745497494789,11.10684377,148.16,148.14,6.7493]
[1745497495588,17.85554377,148.16,148.13,6.7499]
[1745497495986,11.10684377,148.14,148.09,5.0]
[1745497496189,25.02,148.13,148.09,5.0]
[1745497497190,25.02,148.13,148.11,6.7506]
[1745497497493,11.10684377,148.12,148.09,5.0]
[1745497497693,11.10684377,148.1,148.09,5.0]
[1745497497992,11.10684377,148.1,148.04,5.0]
[1745497498190,25.02,148.09,148.04,5.0]
[1745497498489,25.02,148.09,148.07,6.7524]
[1745497499988,25.02,148.09,148.04,5.0]
[1745497500194,25.02,148.09,148.08,6.7522]
[1745497500893,25.02,148.09,148.07,6.7526]
[1745497501094,25.02,148.09,148.05,62.0]
[1745497501291,11.10684377,148.08,148.04,5.0]
[1745497501495,11.10684377,148.08,148.02,11.9321]
[1745497501694,25.02,148.09,148.02,23.03894377]
[1745497501997,25.02,148.11,148.06,5.0]
[1745497502395,11.10684377,148.08,148.03,5.0]
[1745497502591,25.02,148.11,148.03,5.0]
[1745497502592,3.7707,148.15,148.06,11.10684377]
[1745497502797,28.7907,148.15,148.07,5.0]
[1745497502998,11.10684377,148.12,148.07,5.0]
[1745497503193,25.02,148.11,148.04,5.0]
[1745497503396,25.02,148.11,148.08,6.752]
[1745497503591,25.02,148.11,148.04,16.10684377]
[1745497503893,25.02,148.11,148.06,11.10684377]
[1745497504098,25.02,148.11,148.06,5.0]
[1745497504701,6.7516,148.1,148.06,11.7527]
[1745497505503,17.85844377,148.1,148.06,11.7527]
[1745497505801,25.02,148.11,148.03,5.0]
[1745497506003,11.10684377,148.09,148.02,11.9321]
[1745497506401,11.10684377,148.09,148.06,6.7529]
[1745497506904,17.85864377,148.09,148.06,6.7529]
[1745497507103,11.10684377,148.09,148.05,6.7534]
[1745497507305,11.10684377,148.09,148.02,11.9321]
[1745497507507,6.7523,148.08,148.02,11.9321]
[1745497507703,25.02,148.07,148.02,11.9321]
[1745497507906,25.02,148.07,148.06,6.7532]
[1745497508410,36.12684377,148.07,148.02,7.9007]
[1745497508604,42.87954377,148.07,148.04,6.7538]
[1745497508809,36.12684377,148.07,148.04,6.7538]
[1745497509506,42.87984377,148.07,148.04,6.7538]
[1745497510210,6.7532,148.06,148.04,6.7538]
[1745497511117,11.10684377,148.05,148.0,5.0]
[1745497511304,25.02,148.07,148.0,5.0]
[1745497511505,25.02,148.07,148.03,5.0]
[1745497511807,25.02,148.07,148.05,6.7532]
[1745497512113,36.12684377,148.07,148.0,5.0]
[1745497512310,42.87974377,148.07,148.03,6.7542]
[1745497512509,36.12684377,148.07,148.03,6.7542]
[1745497512711,6.7534,148.06,148.03,6.7542]
[1745497512913,6.7534,148.06,148.04,6.7541]
[1745497513115,36.12684377,148.07,148.0,5.0]
[1745497513315,25.02,148.07,148.0,5.0]
[1745497513516,25.02,148.07,148.05,6.7533]
[1745497513816,7.30040199,148.06,148.05,6.7533]
[1745497514619,7.30040199,148.06,148.04,6.7539]
[1745497515619,14.05360199,148.06,148.04,6.7539]
[1745497515814,7.30040199,148.06,148.04,6.7539]
[1745497516015,7.30040199,148.06,148.0,5.0]
[1745497516216,7.30040199,148.02,148.0,5.0]
[1745497516417,32.32040199,148.02,148.0,5.0]
[1745497516715,32.32040199,148.02,148.01,6.755]
[1745497516910,25.02,148.02,148.01,6.755]
[1745497518616,32.32040199,148.02,148.0,5.0]
[1745497518816,32.32040199,148.02,147.96,12.30040199]
[1745497519020,7.30040199,147.99,147.96,5.0]
[1745497519215,25.02,147.98,147.94,7.30040199]
[1745497519822,25.02,147.98,147.97,6.7573]
[1745497520920,23.62328368,147.98,147.97,6.7573]
[1745497523023,23.62328368,147.98,147.97,14.05770199]
[1745497523523,23.62328368,147.98,147.97,6.7573]
[1745497524722,23.62328368,147.98,147.97,14.05770199]
[1745497528321,23.62328368,147.98,147.97,6.7573]
[1745497529318,23.62328368,147.98,147.97,14.05770199]
[1745497530530,7.30040199,148.01,147.99,6.7559]
[1745497530824,25.04,148.0,147.99,6.7559]
[1745497533526,7.30040199,148.07,147.99,7.30040199]
[1745497533728,25.04,148.06,148.04,7.30040199]
[1745497533923,25.04,148.05,148.04,7.30040199]
[1745497534220,25.04,148.05,148.04,14.05450199]
[1745497538433,25.04,148.05,148.04,6.7541]
[1745497543531,25.04,148.05,148.03,6.7543]
[1745497543731,32.34040199,148.05,148.02,5.0]
[1745497544033,32.34040199,148.05,147.99,12.30040199]
[1745497544536,39.09420199,148.05,148.02,6.7546]
[1745497545736,6.7541,148.04,148.02,6.7546]
[1745497545931,7.30040199,148.03,147.99,12.30040199]
[1745497546238,7.30040199,148.03,147.99,5.0]
[1745497546437,7.30040199,148.01,148.0,6.7558]
[1745497546635,32.32040199,148.01,148.0,6.7558]
[1745497547037,25.02,148.01,148.0,6.7558]
[1745497549042,25.02,148.04,147.99,12.30040199]
[1745497549235,25.02,148.04,148.03,7.30040199]
[1745497549640,25.02,148.04,148.03,14.05490199]
[1745497550239,25.02,148.07,148.03,7.30040199]
[1745497550440,25.02,148.07,148.06,7.30040199]
[1745497550637,25.02,148.11,148.06,7.30040199]
[1745497550841,25.02,148.11,148.09,7.30040199]
[1745497551036,25.02,148.11,148.1,6.7513]
[1745497552146,7.30040199,148.15,148.14,6.7495]
[1745497552344,32.32040199,148.15,148.14,6.7495]
[1745497552944,32.32040199,148.15,148.13,6.7498]
[1745497553146,25.02,148.15,148.11,7.30040199]
[1745497553345,25.02,148.15,148.12,7.29068899]
[1745497553543,25.02,148.15,148.13,6.75]
[1745497555347,25.02,148.15,148.14,6.7495]
[1745497555847,25.02,148.15,148.09,19.14922228]
[1745497556045,25.02,148.15,148.13,6.7497]
[1745497556647,25.02,148.15,148.09,8.0423]
[1745497557248,6.7498,148.14,148.09,8.0423]
[1745497557748,31.7692,148.15,148.12,6.7501]
[1745497559350,25.02,148.19,148.13,11.10692228]
[1745497559546,25.02,148.18,148.13,11.10692228]
[1745497559751,31.7678,148.18,148.15,6.7488]
[1745497560049,25.02,148.18,148.16,5.0]
[1745497560349,25.02,148.18,148.17,6.7481]
[1745497560546,25.02,148.18,148.13,11.10692228]
[1745497561552,31.7677,148.18,148.15,6.7487]
[1745497561747,25.02,148.18,148.13,11.10692228]
[1745497562157,25.02,148.18,148.16,6.7483]
[1745497562547,25.02,148.18,148.13,11.10692228]
[1745497562751,25.02,148.18,148.12,5.0]
[1745497562752,25.02,148.18,148.17,6.7481]
[1745497562948,25.0,148.21,148.16,5.0]
[1745497563154,25.0,148.21,148.17,11.10692228]
[1745497563344,25.0,148.21,148.2,6.7468]
[1745497563749,25.0,148.21,148.19,6.7471]
[1745497564150,25.0,148.21,148.17,11.10692228]
[1745497564352,25.0,148.21,148.17,6.7479]
[1745497564752,31.7466,148.21,148.16,5.0]
[1745497565352,31.7466,148.21,148.17,6.7479]
[1745497565553,6.7469,148.2,148.17,6.7479]
[1745497566351,31.7464,148.21,148.17,6.7479]
[1745497567551,31.7464,148.21,148.18,6.7476]
[1745497567954,6.7468,148.2,148.16,5.0]
[1745497568253,36.10692228,148.21,148.16,5.0]
[1745497568448,36.10692228,148.21,148.15,6.7487]
[1745497568649,6.748,148.18,148.15,6.7487]
[1745497568850,25.0,148.17,148.15,6.7487]
[1745497569355,25.0,148.17,148.16,6.7486]
[1745497569750,25.0,148.17,148.13,5.0]
[1745497570052,25.0,148.17,148.16,6.7486]
[1745497571152,25.0,148.17,148.15,6.7488]
[1745497571350,25.0,148.17,148.13,5.0]
[1745497571652,25.0,148.17,148.16,6.7486]
[1745497572049,25.0,148.17,148.16,11.7486]
[1745497572245,25.0,148.2,148.19,6.7468]
[1745497573851,25.0,148.2,148.19,11.7468]
[1745497575457,31.7455,148.23,148.21,6.7463]
[1745497576050,25.0,148.23,148.21,6.7463]
[1745497576456,25.0,148.23,148.22,6.7459]
[1745497581558,31.7457,148.23,148.19,5.0]
[1745497581752,36.10692228,148.23,148.16,5.0]
[1745497582457,6.7466,148.21,148.16,5.0]
[1745497583157,6.7466,148.21,148.18,6.7474]
[1745497583558,6.7466,148.21,148.16,5.0]
[1745497584460,6.747,148.2,148.16,5.0]
[1745497584754,25.0,148.19,148.16,5.0]
[1745497585058,31.7474,148.19,148.16,5.0]
[1745497585561,6.7479,148.18,148.16,5.0]
[1745497585859,36.10692228,148.19,148.12,5.0]
[1745497586061,6.749,148.16,148.13,6.7497]
[1745497586256,25.0,148.15,148.13,6.7497]
[1745497586953,31.7491,148.15,148.12,11.7501]
[1745497587457,25.0,148.15,148.13,6.7499]
[1745497587861,25.0,148.15,148.12,5.0]
[1745497588060,36.10692228,148.15,148.09,5.0]
[1745497588261,6.75,148.13,148.11,6.7506]
[1745497588453,6.75,148.13,148.09,5.0]
[1745497589163,6.75,148.13,148.1,6.751]
[1745497589362,6.7503,148.13,148.1,6.751]
[1745497589558,11.10692228,148.13,148.06,5.0]
[1745497589759,11.10692228,148.13,148.08,6.7521]
[1745497589958,6.7513,148.11,148.08,6.7521]
[1745497590159,25.0,148.1,148.08,6.7521]
[1745497591065,31.7516,148.1,148.07,6.7527]
[1745497591560,31.7516,148.1,148.03,16.10692228]
[1745497591764,31.7516,148.1,148.07,6.7525]
[1745497595067,6.7519,148.09,148.06,6.7529]
[1745497595466,25.0,148.1,148.03,16.10692228]
[1745497595766,31.7517,148.1,148.07,6.7525]
[1745497596268,11.10692228,148.09,148.04,6.754]
[1745497596463,11.10692228,148.07,148.04,6.754]
[1745497596662,25.0,148.06,148.04,6.754]
[1745497596863,31.7533,148.06,148.0,8.9624]
[1745497598166,31.7533,148.06,148.03,6.7544]
[1745497598465,6.7537,148.05,148.03,6.7544]
[1745497598666,6.7537,148.05,148.0,5.0]
[1745497598862,25.0,148.06,148.0,5.0]
[1745497599169,11.10692228,148.05,147.97,5.0]
[1745497599362,6.7543,148.04,148.0,6.7556]
[1745497599568,11.10692228,148.05,148.0,6.7556]
[1745497599965,6.7548,148.03,148.0,6.7556]
[1745497600162,25.0,148.02,148.0,6.7556]
[1745497600969,25.0,148.02,148.01,6.7554]
[1745497601872,25.0,148.02,148.0,6.7557]
[1745497602076,11.10692228,148.05,147.94,23.18772228]
[1745497602377,6.7544,148.04,148.01,6.7554]
[1745497603582,6.7544,148.04,148.02,6.755]
[1745497603781,11.10692228,148.07,147.98,11.10692228]
[1745497604177,6.7534,148.06,148.03,6.7541]
[1745497604377,19.30232228,148.09,148.0,11.10692228]
[1745497604880,6.7529,148.07,148.05,6.7534]
[1745497605080,19.30232228,148.09,148.05,6.7534]
[1745497605582,6.7531,148.07,148.04,6.754]
[1745497605975,6.7531,148.07,148.0,11.10692228]
[1745497606176,6.7531,148.07,148.01,5.0]
[1745497606477,3.8869,148.1,148.01,5.0]
[1745497606683,3.8869,148.1,148.02,11.10692228]
[1745497607781,10.6385,148.1,148.07,6.7524]
[1745497608080,3.8869,148.1,148.07,6.7524]
[1745497608584,6.752,148.09,148.06,6.7529]
[1745497608882,3.8869,148.1,148.06,6.7529]
[1745497609083,6.7522,148.09,148.06,6.7529]
[1745497610179,6.7525,148.08,148.05,6.7534]
[1745497610983,6.7528,148.07,148.05,6.7534]
[1745497611184,3.8869,148.1,148.05,6.7534]
[1745497611478,6.7523,148.08,148.05,6.7534]
[1745497611687,3.8869,148.1,148.02,11.10692228]
[1745497612084,6.7533,148.06,148.01,16.8678]
[1745497612479,6.7533,148.06,148.04,6.7539]
[1745497612784,6.7529,148.07,148.04,6.7539]
[1745497613284,6.7529,148.07,148.05,6.7536]
[1745497613979,6.7529,148.07,148.01,16.8678]
[1745497613980,6.7519,148.09,148.07,6.7527]
[1745497614185,8.189,148.13,148.04,16.10692228]
[1745497614380,8.189,148.13,148.04,5.0]
[1745497614589,6.7507,148.12,148.09,6.7514]
[1745497614885,6.7507,148.12,148.06,11.10692228]
[1745497615086,6.7509,148.11,148.04,16.10692228]
[1745497615279,11.10692228,148.12,148.04,5.0]
[1745497615482,11.10692228,148.1,148.04,5.0]
[1745497615683,6.7521,148.09,148.06,6.7529]
[1745497615977,11.10692228,148.08,148.04,5.0]
[1745497616182,11.10692228,148.08,148.01,16.8678]
[1745497616789,6.7532,148.06,148.03,6.7545]
[1745497617689,11.10692228,148.08,148.04,6.7538]
[1745497617882,11.10692228,148.08,148.01,5.0]
[1745497618083,6.753,148.07,148.01,5.0]
[1745497618283,6.753,148.07,148.04,6.7537]
[1745497618684,11.10692228,148.08,148.01,5.0]
[1745497618889,6.7535,148.06,148.03,6.7544]
[1745497619188,6.7535,148.06,148.01,5.0]
[1745497619786,6.7537,148.05,148.02,6.7546]
[1745497620183,6.7537,148.05,148.01,5.0]
[1745497620385,6.7537,148.05,148.03,6.7543]
[1745497620688,6.7534,148.06,148.03,6.7543]
[1745497621489,11.10692228,148.06,148.02,6.7549]
[1745497621785,11.10692228,148.08,148.01,5.0]
[1745497621991,6.7529,148.07,148.04,6.7537]
[1745497623791,6.7529,148.07,148.05,6.7536]
[1745497626093,6.7529,148.07,148.04,6.7538]
[1745497626391,6.7536,148.06,148.01,5.0]
[1745497626590,11.10692228,148.08,148.03,6.7542]
[1745497626785,11.10692228,148.08,148.01,5.0]
[1745497626992,6.753,148.07,148.01,5.0]
[1745497627295,6.753,148.07,148.04,6.7538]
[1745497627694,6.753,148.07,148.01,5.0]
[1745497628395,6.753,148.07,148.04,6.7539]
[1745497629691,6.7532,148.06,148.04,6.7539]
[1745497630495,6.7536,148.05,148.03,6.7543]
[1745497630789,11.10692228,148.08,148.01,5.0]
[1745497631296,6.7533,148.06,148.03,6.7545]
[1745497631595,11.12205142,148.08,148.01,5.0]
[1745497631795,6.7532,148.06,148.03,6.7543]
[1745497631994,11.12205142,148.08,148.01,5.0]
[1745497632395,7.30010601,148.07,148.01,12.30010601]
[1745497634199,6.7533,148.06,148.03,6.7542]
[1745497634601,6.7533,148.06,148.04,6.7541]
[1745497634898,14.05300601,148.07,148.04,6.7541]
[1745497635395,14.05300601,148.07,148.05,6.7534]
[1745497637700,7.30010601,148.07,148.05,6.7534]
[1745497637902,7.30010601,148.07,148.06,6.7532]
[1745497638501,14.05260601,148.08,148.06,6.7532]
[1745497639001,14.05160601,148.1,148.03,7.30010601]
[1745497639297,7.30010601,148.1,148.05,7.30010601]
[1745497639501,14.05030601,148.13,148.1,6.7513]
[1745497640501,6.7506,148.12,148.1,6.7513]
[1745497640704,7.30010601,148.11,148.09,6.7516]
[1745497640998,7.30010601,148.11,148.05,5.0]
[1745497641194,7.30010601,148.08,148.06,6.7527]
[1745497641503,7.30010601,148.08,148.05,5.0]
[1745497641804,7.30010601,148.08,148.07,6.7527]
[1745497642502,14.05230601,148.08,148.06,6.7531]
[1745497643104,7.30010601,148.08,148.07,6.7527]
[1745497643502,14.05080601,148.12,148.07,7.30010601]
[1745497643703,6.7507,148.12,148.09,6.7516]
[1745497643899,7.30010601,148.12,148.09,6.7516]
[1745497644703,6.751,148.11,148.09,6.7516]
[1745497650303,6.751,148.11,148.07,7.30010601]
[1745497650304,14.05140601,148.1,148.08,6.7521]
[1745497650504,7.30010601,148.1,148.05,5.0]
[1745497650699,7.30010601,148.08,148.05,5.0]
[1745497650904,7.30010601,148.08,148.06,6.7532]
[1745497651508,7.30010601,148.08,148.07,6.7527]
[1745497652109,7.30010601,148.08,148.06,6.753]
[1745497653907,7.30010601,148.08,148.05,11.7534]
[1745497654112,7.30010601,148.06,148.05,6.7534]
[1745497654507,8.0554,148.15,148.05,7.30010601]
[1745497654709,8.0554,148.15,148.07,7.30010601]
[1745497654908,7.30010601,148.12,148.07,7.30010601]
[1745497655111,493.18010601,148.16,148.11,7.30010601]
[1745497655510,14.04970601,148.14,148.12,6.7503]
[1745497655716,7.30010601,148.14,148.12,6.7503]
[1745497656417,7.30010601,148.14,148.11,6.7507]
[1745497657317,14.04980601,148.14,148.11,6.7507]
[1745497657513,7.30010601,148.14,148.1,6.7512]
[1745497658218,6.7502,148.13,148.1,6.7512]
[1745497658517,7.30010601,148.14,148.11,6.7508]
[1745497658721,7.30010601,148.14,148.09,7.30010601]
[1745497659018,7.30010601,148.14,148.11,6.7506]
[1745497659317,14.04980601,148.14,148.11,6.7506]
[1745497660419,6.75,148.13,148.11,6.7506]
[1745497660718,6.75,148.13,148.1,6.7511]
[1745497661922,6.75,148.13,148.11,6.7509]
[1745497662218,14.04980601,148.14,148.11,6.7509]
[1745497662420,40.4894,148.26,148.13,7.30010601]
[1745497662619,7.30010601,148.21,148.15,7.30010601]
[1745497663524,14.04670601,148.21,148.17,6.7478]
[1745497663818,7.30010601,148.21,148.12,5.0]
[1745497664023,14.04570601,148.23,148.17,7.30010601]
[1745497664720,14.04570601,148.23,148.19,6.7469]
[1745497665424,6.746,148.22,148.19,6.7469]
[1745497665624,7.30010601,148.23,148.18,6.7476]
[1745497666225,6.7461,148.22,148.19,6.7471]
[1745497671128,14.04570601,148.23,148.2,6.7467]
[1745497671426,487.31490167,148.26,148.21,7.30010601]
[1745497671622,486.14,148.26,148.21,12.30010601]
[1745497671823,486.14,148.26,148.24,6.7447]
[1745497672329,486.14,148.26,148.21,12.30010601]
[1745497673129,492.8841,148.26,148.21,12.30010601]
[1745497673426,7.30010601,148.25,148.21,5.0]
[1745497673618,486.14,148.26,148.21,12.30010601]
[1745497674119,486.14,148.26,148.23,6.7451]
[1745497676522,492.8841,148.26,148.22,6.7457]
[1745497676719,486.14,148.26,148.21,12.30010601]
[1745497678227,6.7445,148.25,148.22,6.7458]
[1745497678429,7.30010601,148.25,148.21,5.0]
[1745497678829,6.7452,148.24,148.21,11.746]
[1745497679831,14.04480601,148.25,148.22,6.7458]
[1745497681131,500.18430601,148.26,148.23,6.7453]
[1745497681525,6.7448,148.25,148.22,6.7457]
[1745497681727,7.30010601,148.24,148.21,5.0]
[1745497681922,7.30010601,148.24,148.18,5.0]
[1745497682632,14.04520601,148.24,148.21,6.746]
[1745497684033,14.04520601,148.24,148.22,6.7458]
[1745497684234,7.30010601,148.24,148.22,6.7458]
[1745497685134,7.30010601,148.24,148.21,6.7461]
[1745497685435,7.30010601,148.24,148.19,7.30010601]
[1745497685831,7.30010601,148.22,148.18,5.0]
[1745497686036,486.14,148.26,148.18,5.0]
[1745497686232,7.30010601,148.23,148.18,5.0]
[1745497686536,7.30010601,148.23,148.2,6.7464]
[1745497687037,14.04580601,148.23,148.2,6.7464]
[1745497687538,6.7462,148.22,148.19,6.7469]
[1745497687834,7.30010601,148.21,148.19,6.7469]
[1745497688134,7.30010601,148.21,148.15,5.0]
[1745497688336,7.30010601,148.17,148.12,5.0]
[1745497688736,14.04840601,148.17,148.14,6.7492]
[1745497688937,7.30010601,148.21,148.15,7.30010601]
[1745497689134,7.30010601,148.19,148.17,6.7479]
[1745497689336,7.30010601,148.18,148.13,5.0]
[1745497689531,7.30010601,148.2,148.1,5.0]
[1745497689532,7.30010601,148.14,148.1,5.0]
[1745497689740,7.30010601,148.14,148.11,6.7504]
[1745497690841,7.30010601,148.12,148.11,6.7504]
[1745497692443,7.30010601,148.12,148.1,5.0]
[1745497692644,7.30010601,148.12,148.06,5.0]
[1745497692838,7.30010601,148.09,148.06,5.0]
[1745497693438,7.30010601,148.09,148.07,6.7523]
[1745497693648,7.30010601,148.09,148.06,5.0]
[1745497693845,7.30010601,148.07,148.03,5.0]
[1745497694141,7.30010601,148.07,148.05,6.7535]
[1745497694446,7.30010601,148.07,148.03,5.0]
[1745497694643,7.30010601,148.05,148.03,5.0]
[1745497695442,7.30063598,148.05,148.03,5.0]
[1745497696444,7.30063598,148.05,148.04,6.7541]
[1745497696744,17.87567811,148.07,148.04,6.7541]
[1745497698743,6.7533,148.06,148.03,6.7545]
[1745497699448,11.12267811,148.04,147.96,5.0]
[1745497699647,11.12267811,148.01,147.96,5.0]
[1745497699849,11.12267811,148.01,147.98,6.7566]
[1745497700242,11.12267811,148.01,147.96,5.0]
[1745497700547,11.12267811,148.01,147.93,16.12267811]
[1745497700843,11.12267811,148.01,147.96,5.0]
[1745497701242,11.12267811,148.01,147.93,11.12267811]
[1745497701949,11.12267811,148.01,148.0,6.7559]
[1745497703650,11.12267811,148.03,148.01,6.7552]
[1745497704657,11.12267811,148.03,148.02,6.755]
[1745497705151,11.12267811,148.05,147.95,11.12267811]
[1745497705953,17.87627811,148.05,148.02,6.7547]
[1745497706152,11.12267811,148.05,147.99,5.0]
[1745497706555,11.12267811,148.01,147.99,5.0]
[1745497706747,11.12267811,148.03,147.96,5.0]
[1745497707449,11.12267811,148.03,148.0,6.7556]
[1745497707747,11.12267811,148.03,147.96,5.0]
[1745497708554,6.7553,148.02,147.98,6.7565]
[1745497708754,11.12267811,148.01,147.98,6.7565]
[1745497708949,17.87817811,148.01,147.98,6.7565]
[1745497709350,11.12267811,148.01,147.99,6.7563]
[1745497712459,17.87737811,148.03,148.0,6.7559]
[1745497713052,11.12267811,148.05,147.96,5.0]
[1745497713257,11.12267811,148.05,147.97,11.12267811]
[1745497713557,17.87667811,148.05,148.02,6.7547]
[1745497714460,6.7548,148.03,148.0,6.7557]
[1745497714656,11.12267811,148.03,148.0,6.7557]
[1745497715261,17.87747811,148.03,148.0,6.7557]
[1745497715958,6.755,148.02,148.0,6.7557]
[1745497716158,11.12267811,148.03,148.0,6.7557]
[1745497716558,17.87747811,148.03,148.0,6.7557]
[1745497716960,11.12267811,148.03,147.98,6.7566]
[1745497717154,11.12267811,148.03,147.96,5.0]
[1745497717554,11.12267811,148.03,147.99,6.756]
[1745497717759,11.12267811,148.03,147.96,5.0]
[1745497717760,17.87747811,148.03,147.96,5.0]
[1745497718254,6.7551,148.02,147.96,5.0]
[1745497718660,6.7551,148.02,147.99,6.7561]
[1745497719461,6.7551,148.02,148.0,6.7558]
[1745497719761,6.7551,148.02,147.96,5.0]
[1745497719962,6.7551,148.02,147.99,6.756]
[1745497720658,6.7555,148.01,147.99,6.756]
[1745497720862,6.7555,148.01,147.98,6.7564]
[1745497721161,6.7555,148.01,147.96,5.0]
[1745497721461,6.7552,148.02,147.99,6.7561]
[1745497721864,11.12950038,148.03,147.99,6.7561]
[1745497722059,1.176073,148.08,147.96,5.0]
[1745497722060,7.30969635,148.0,147.96,5.0]
[1745497722259,7.30969635,147.97,147.93,7.30969635]
[1745497722562,14.06709635,147.97,147.94,6.7584]
[1745497722960,7.30969635,147.97,147.93,7.30969635]
[1745497723262,6.7575,147.97,147.94,6.7586]
[1745497723963,6.7575,147.97,147.95,6.7581]
[1745497724163,7.30822658,147.98,147.93,7.30822658]
[1745497724361,1.176073,148.08,147.96,11.12920435]
[1745497724558,11.12920435,148.07,147.99,6.7561]
[1745497725264,6.7548,148.03,148.0,6.7559]
[1745497727366,6.7543,148.04,148.0,6.7559]
[1745497727564,11.12920435,148.07,147.98,11.12920435]
[1745497727767,11.12920435,148.07,147.99,5.0]
[1745497728071,6.7534,148.06,147.99,5.0]
[1745497728267,6.7534,148.06,148.03,6.7544]
[1745497728568,497.58920435,148.09,148.0,11.12920435]
[1745497729166,11.12920435,148.09,148.0,11.12920435]